Cogmind - Beta 9.6 @@@ ROGUE MODE // 2020.05.31 @ 13:37:32 Player: YARUOMI Result: Destroyed by Y-45 Defender with Beam Rifle Performance ------------- Evolutions (1) 500 Regions Visited (2) 400 Robots Destroyed (21) 105 Value Destroyed (398) 398 Prototype IDs (0) 0 Alien Tech Used (0) 0 Bonus (0) 0 TOTAL SCORE: 1403 Bonus ------- None Cogmind --------- Core Integrity 0/400 Matter 2/300 Energy 400/400 System Corruption 0% Temperature Cool (9) Movement Core (150) Ox2 Location -9/Materials Parts ------- > --- POWER (1) -------- (None) > --- PROPULSION (3) --- (None) > --- UTILITY (3) ------ Large Battery Visual Processing Unit > --- WEAPON (2) ------- Improved Light Cannon Flail > --- INVENTORY (4) ---- Ion Engine Targeting Computer Peak State ------------ > --- POWER ------------ Ion Engine > --- PROPULSION ------- Wheel Wheel Wheel > --- UTILITY ---------- Medium Storage Unit Large Battery Visual Processing Unit > --- WEAPON ----------- Beam Rifle Beam Rifle > --- INVENTORY -------- Ion Engine Targeting Computer Improved Light Cannon Improved Light Cannon Rocket Launcher Flail [Rating: 13] Favorites ----------- Power Ion Engine Engine Ion Engine Propulsion Wheel Wheel Wheel Utility Visual Processing Unit Storage Medium Storage Unit Processor Visual Processing Unit Weapon Beam Rifle Energy Gun Beam Rifle Energy Cannon Particle Cannon Ballistic Gun Assault Rifle Ballistic Cannon Improved Light Cannon Launcher Grenade Launcher Impact Weapon Flail Build | -11 -10 -9 ------- Run | Scr Mat Mat Slots Evolved 2 | . . 2 Power . | . . . Propulsion 1 | . . 1 Utility 1 | . . 1 Weapon . | . . . Parts Attached 26 | 6 13 7 Power 2 | 1 1 . Engine 2 | 1 1 . Core . | . . . Reactor . | . . . Propulsion 5 | 2 2 1 Treads . | . . . Leg . | . . . Wheel 5 | 2 2 1 Hover . | . . . Flight . | . . . Utility 6 | 1 4 1 Device . | . . . Storage 5 | 1 3 1 Processor 1 | . 1 . Hackware . | . . . Protection . | . . . Artifact . | . . . Weapon 13 | 2 6 5 Energy Gun 2 | . 2 . Energy Cannon 1 | . . 1 Ballistic Gun 2 | 2 . . Ballistic Cannon 4 | . 2 2 Launcher 3 | . 2 1 Special Weapon . | . . . Impact Weapon 1 | . . 1 Slashing Weapon . | . . . Piercing Weapon . | . . . Special Melee Weapon . | . . . Unidentified Prototypes . | . . . Parts Lost 11 | . 2 9 Power 1 | . . 1 Propulsion 4 | . 1 3 Utility . | . . . Weapon 6 | . 1 5 Highest Loss Streak 6 | . 2 6 Average Slot Usage (%) 91 | . 97 75 Engine 12 | . 14 9 Wheel 24 | . 27 16 Storage 14 | . 14 17 Processor 12 | . 12 11 Energy Gun 8 | . 7 9 Ballistic Gun 7 | . 10 . Ballistic Cannon 6 | . 6 5 Launcher 2 | . 2 1 Naked Turns . | . . . Heaviest Build 22 | 12 21 22 Greatest Support 30 | 20 20 30 Greatest Overweight (x) 5 | 1 1 5 Average Overweight (x) . | . . . Largest Inventory Capacity 12 | 6 12 8 Average Capacity 6 | 5 7 6 Most Carried 8 | 6 8 7 Average Carried 5 | 3 5 5 Final Capacity 8 | 6 8 4 Final Carried 8 | 6 8 2 Class Distribution -------------------- 87% | Mutant 12% | Scavenger-Mutant Dominant Class ---------------- Mutant | -10/Materials Mutant | -9/Materials Resources | -11 -10 -9 ----------- Run | Scr Mat Mat Matter Collected 338 | 36 217 85 Remotely . | . . . Salvage Created 412 | . 246 166 Parts 45 | . 29 16 Haulers Intercepted . | . . . Recyclers Shooed 1 | . 1 . Parts Field Recycled . | . . . Retrieved Matter . | . . . Parts Self-Destructed . | . . . Prevented . | . . . Kills | -11 -10 -9 ------- Run | Scr Mat Mat Combat Hostiles Destroyed 16 | . 7 9 Guns 5 | . 4 1 Cannons 6 | . 1 5 AOE 5 | . 2 3 Classes Destroyed 7 | . 5 2 Worker 1 | . 1 . Builder 1 | . 1 . Recycler 1 | . . 1 Watcher 2 | . 2 . Swarmer 11 | . 3 8 Grunt 4 | . 4 . Sentry 1 | . . 1 Best Kill Streak 6 | . 5 6 Combat Bots Only 5 | . 3 5 Max Kills in Single Turn 2 | . 2 2 Gunslinging . | . . . Exploded 2 | . 1 2 Melee . | . . . Uniques/NPCs Destroyed . | . . . Combat | -11 -10 -9 -------- Run | Scr Mat Mat Damage Taken 1633 | . 438 1195 Core 494 | . 92 402 Absorbed by Shields . | . . . Core Remaining (%) 81 | 100 63 . Volleys Fired 58 | . 31 27 Largest 2 | . 2 2 Hottest 112 | . 112 112 Shots Fired 95 | . 56 39 Gun 63 | . 47 16 Cannon 27 | . 6 21 Launcher 5 | . 3 2 Special . | . . . Kinetic 61 | . 45 16 Thermal 29 | . 8 21 Explosive 5 | . 3 2 Electromagnetic . | . . . Robot Hit Streak 9 | . 9 7 Robot Miss Streak 8 | . 8 4 Penetration Max . | . . . Secondary Targets 1 | . 1 . Max Gunslinging Chain 1 | . 1 . Shots Hit Robots 57 | . 38 19 Core Hits 28 | . 18 10 Critical Hits . | . . . Critical Kills . | . . . Critical Parts Destroyed . | . . . Melee Attacks . | . . . Impact . | . . . Slashing . | . . . Piercing . | . . . Sneak Attacks . | . . . Combat Hostiles . | . . . Follow-up Attacks . | . . . Damage Inflicted 1462 | . 770 692 Guns 483 | . 440 43 Cannons 330 | . 22 308 Explosions 649 | . 308 341 Melee . | . . . Ramming . | . . . Kinetic 601 | . 375 226 Thermal 475 | . 87 388 Explosive 386 | . 308 78 Electromagnetic . | . . . Impact . | . . . Slashing . | . . . Piercing . | . . . Highest Corruption . | . . . Average Corruption . | . . . Corruption Purged . | . . . Overload Shots . | . . . Overflow Damage 125 | . . 125 Projectiles 5 | . . 5 Explosions 120 | . . 120 Melee . | . . . Knockbacks 1 | . . 1 Impact . | . . . Kinetic 1 | . . 1 Secondary . | . . . Self-Inflicted Damage 227 | . . 227 Shots 3 | . . 3 Rammed . | . . . Targets Rammed . | . . . Kicked . | . . . Crushed . | . . . Highest Temperature 275 | . 102 275 Average Temperature 75 | . 27 117 Received Heat Transfer 351 | . 225 126 Effects 1 | . . 1 Energy Bleed 1 | . . 1 Siege Activations . | . . . Robots Corrupted . | . . . Combat Hostiles . | . . . Parts Fried . | . . . Impact Corruptions . | . . . Robots Melted . | . . . Combat Hostiles . | . . . Parts Melted . | . . . Heat Transferred 631 | . 222 409 Parts Sabotaged . | . . . Parts Stolen . | . . . Parts Stripped . | . . . Power Chain Reactions . | . . . Missiles Intercepted . | . . . Alert | -11 -10 -9 ------- Run | Scr Mat Mat Peak Influence 244 | . 235 244 Average Influence 108 | . 124 98 Maximum Alert Level 1 | . 1 1 Low Security (%) 78 | 100 72 87 Level 1 21 | . 27 12 Level 2 . | . . . Level 3 . | . . . Level 4 . | . . . Level 5 . | . . . High Security . | . . . Max Security . | . . . Squads Dispatched 1 | . 1 . Investigation . | . . . Extermination . | . . . Reinforcement 1 | . 1 . Assault . | . . . Garrison . | . . . Intercept . | . . . Construction Impeded . | . . . Haulers Reinforced . | . . . Stealth | -11 -10 -9 --------- Run | Scr Mat Mat Distress Signals . | . . . Communications Jammed . | . . . Distress Signals . | . . . Times Spotted 24 | . 13 11 Peak Tracking Total 5 | . 4 5 Tactical Retreats . | . . . Traps | -11 -10 -9 ------- Run | Scr Mat Mat Traps Triggered . | . . . Indirectly . | . . . Trap Hack Attempts . | . . . Triggered . | . . . Disarmed . | . . . Reprogrammed . | . . . Reused . | . . . Traps Extracted . | . . . Installed . | . . . Triggered . | . . . Machines | -11 -10 -9 ---------- Run | Scr Mat Mat Machines Disabled 5 | . . 5 Max in Single Turn 5 | . . 5 Machines Sabotaged . | . . . Garrisons Compromised . | . . . Overloaded Fab Kills . | . . . Fab Network Shutdowns . | . . . Hacking | -11 -10 -9 --------- Run | Scr Mat Mat Machines Accessed 4 | . 4 . Terminals 4 | . 4 . Fabricators . | . . . Repair Stations . | . . . Recycling Units . | . . . Scanalyzers . | . . . Garrison Access . | . . . Total Hacks 14 | . 14 . Successful 9 | . 9 . Failed 5 | . 5 . Catastrophic . | . . . Database Lockouts . | . . . Manual . | . . . Terminals 14 | . 14 . Fabricators . | . . . Repair Stations . | . . . Recycling Units . | . . . Scanalyzers . | . . . Garrison Access . | . . . Terminal Hacks 9 | . 9 . Record 3 | . 3 . Alert Level 1 | . 1 . Transport Status 1 | . 1 . Investigation Status 1 | . 1 . Recall Investigation 1 | . 1 . Hauler Manifests 1 | . 1 . Zone Layout 1 | . 1 . Fabricator Hacks . | . . . Repair Station Hacks . | . . . Recycling Unit Hacks . | . . . Scanalyzer . | . . . Garrison Access Hacks . | . . . Unauthorized Hacks . | . . . Terminals . | . . . Fabricators . | . . . Repair Stations . | . . . Recycling Units . | . . . Scanalyzers . | . . . Garrison Access . | . . . Data Cores Recovered . | . . . Used . | . . . Hacking Detections 2 | . 2 . Full Trace Events . | . . . Feedback Events . | . . . Feedback Blocked . | . . . Robot Schematics Acquired . | . . . Robots Built . | . . . Matter . | . . . Time . | . . . Total Robot Build Rating . | . . . Part Schematics Acquired . | . . . Parts Built . | . . . Matter . | . . . Time . | . . . Total Part Build Rating . | . . . Parts Repaired . | . . . Time . | . . . Parts Recycled . | . . . Recycled Matter . | . . . Retrieved Matter . | . . . Retrieved Components . | . . . Parts Scanalyzed . | . . . Part Schematics Acquired . | . . . Parts Damaged . | . . . Bothacking | -11 -10 -9 ------------ Run | Scr Mat Mat Used RIF Installer . | . . . Robots Hacked . | . . . Non-combat . | . . . Combat . | . . . Robot Hacks Applied . | . . . Relay Couplers Released . | . . . Robots Rewired . | . . . Allies Hacked . | . . . Hacks Repelled . | . . . Allies | -11 -10 -9 -------- Run | Scr Mat Mat Total Allies . | . . . Largest Group . | . . . Highest-Rated Group . | . . . Highest-Rated Ally . | . . . Total Orders . | . . . Ally Attacks . | . . . Total Damage . | . . . Kills . | . . . Allies Corrupted . | . . . Allies Melted . | . . . Intel | -11 -10 -9 ------- Run | Scr Mat Mat Robot Analysis Total . | . . . Derelict Logs Recovered . | . . . Drone Launches . | . . . Drone Recoveries . | . . . Exploration | -11 -10 -9 ------------- Run | Scr Mat Mat Turns Passed 758 | 57 503 198 Spaces Moved 597 | 50 445 102 Core 30 | 13 . 17 Treads . | . . . Legs . | . . . Wheels 567 | 37 445 85 Hover . | . . . Flight . | . . . Fastest Speed 50 | 50 80 80 Average Speed 87 | 79 82 113 Slowest Speed 300 | 100 90 300 Overloaded Moves . | . . . Propulsion Burnouts . | . . . Robots Hopped . | . . . Cave-ins Triggered . | . . . Exploration Rate (%) 28 | 3 63 18 Regions Visited 2 Branch Regions . Pre-discovered Areas . | . . . Known Exits Taken . | . . . Unknown Exits Taken 2 | 1 1 . Scrap Searched . | . . . Spaces Dug . | . . . Terrain Destroyed 45 | . 18 27 Melee . | . . . Projectile 1 | . . 1 AOE 44 | . 18 26 Actions | -11 -10 -9 --------- Run | Scr Mat Mat Total 746 | 67 533 146 Wait 16 | . 8 8 Move 595 | 49 444 102 Hop . | . . . Pick Up 34 | 12 21 1 Fast Attach . | . . . Attach 20 | 6 7 7 Detach . | . . . Swap 6 | . 6 . Drop 17 | . 16 1 Fire 58 | . 31 27 Melee . | . . . Ram . | . . . Kick . | . . . Crush . | . . . Escape Stasis . | . . . Rewire . | . . . Trap . | . . . Miscellaneous . | . . . Route ------- -11/Scrapyard -10/Materials (discovered 2 exits: *Mat / [*Min]) -9/Materials History --------- Turn | Location | Event 3 | -11/Scrapyard | Discovered new exit (range 16) 58 | -11/Scrapyard | Entered Materials 210 | -10/Materials | Discovered new exit (range 18) 298 | -10/Materials | Discovered new exit (range 8) 300 | -10/Materials | Build established: Mutant 561 | -10/Materials | Entered another Materials area 561 | -9/Materials | Evolved 2 slots: Propulsion x1, Utility x1 699 | -9/Materials | Lost 6 parts (3n3w) 715 | -9/Materials | Core integrity fell below 50% 737 | -9/Materials | Core integrity fell below 20% 759 | -9/Materials | Destroyed by Y-45 Defender with Beam Rifle Last Messages --------------- 00714_ U-05 Engineer lays Concrete. 00719_ Destroyed Flight Unit. 00719_ S-10 Pest destroyed. 00720_ U-05 Engineer lays Concrete. 00722_ Destroyed Flight Unit. 00723_ U-05 Engineer lays Concrete. 00725_ K-01 Serf collects debris. 00726_ U-05 Engineer lays Concrete. 00727_ Particle Cannon destroyed. 00727_ U-05 Engineer lays Concrete. 00728_ K-01 Serf collects debris. 00729_ U-05 Engineer lays Concrete. 00734_ Acquired 50 matter. 00734_ R-06 Scavenger collects Imp. Ion Engine. 00736_ Ion Engine destroyed. 00737_ Imp. Light Cannon destroyed. 00740_ S-10 Pest destroyed. 00746_ Destroyed Flight Unit. 00746_ S-10 Pest knocked back. 00750_ S-10 Pest destroyed. Map ----- +----------------------------------------------------+ | ????????# #??### ###??????""" #????????????? | | ????????# #### ## ###### """ #????????????? | | ????????# + #????????????? | | ????????# """"""""###????????????? | | ?######## ###??????????? | | ?# # ??????????? | | ?# """ " ?????????? | | ?# """ " ?????????? | | ?# """ " * ##???????????? | | ?# " "#???????????? | | ?# " "#???????????? | | ?######## * ##???????????? | | ???????# #????????????? | | ???????# #????????????? | | ???????# #????????????? | | ???????# #####""" " #????????????? | | ???????# #???####### ##???????????? | | ???????# #?????????# +???????????? | | ???????# #?????????# ###???????????? | | ???????# ########### ##########?????????????? | | ???????# ## """" #### ##??????????????????????? | | ???????# ## ""S"" #??# #???????????????????????? | | ???????# ## "" "" #### ####??????? #?????????? | | ???????# ## ## =;#### #?????????? | | ???????# ## ## %%==Y #?????????? | | ??????## ## ## = @* = #?????????? | | ??????# # ## % #?????????? | | ??????# # """ ## ##### #?????????? | | ??????# + """ ####;###????? #?????????? | | ??????# # """ #?? ????????? ##?????????? | | ??????# # #??"""?????????? #??????????? | | ######## ##########? R" ???????????#??????????? | | # # !!##?????? """ ??????????????????????? | | # ! # !#????? #?????????????????????? | | #"S + !#????? #?????????????????????? | | #""" # !#????########?????????????????????? | | # "" !# !#?????????????????????????????????? | | # ! # !!##?????????????????????????????????? | | ###############??????????????????????????????????? | | ?????????????????????????????????????????????????? | | ?????????????????????????????????????????????????? | | ?????????????????????????????????????????????????? | | ?????????????????????????????????????????????????? | | ?????????????????????????????????????????????????? | | ?????????????????????????????????????????????????? | | ?????????????????????????????????????????????????? | | ?????????????????????????????????????????????????? | | ?????????????????????????????????????????????????? | | ?????????????????????????????????????????????????? | | ?????????????????????????????????????????????????? | +----------------------------------------------------+ Best States ------------- Heat Dissipation 28 Energy Generation 10 Energy Capacity 550 Matter Stores 158 Matter Capacity 300 Sight Range 18 Terrain Scan Density 10 Evasion (%) 44 Item Schematics ----------------- None Robot Schematics ------------------ None Fabricated ------------ Nothing Alien Tech Used ----------------- None Achievements -------------- None Challenges ------------ None Game ------ Seed PrecisionBoreDesublimator Manual? 0 Play Time 00:25:10 Cumulative 17.5 hours Start 2020.05.31 @ 13:11:56 End 2020.05.31 @ 13:37:32 Sessions 1 Manual Loads 0 Difficulty Rogue Special Mode None Game No. 6 Rogue 1 Adventurer 5 Explorer 0 Win Type - Total 0 Types 0/0/0/0/0/0/0 Lore% 10 Gallery% 18 Achievement% 17 Wizard Run 0 Options --------- ASCII 0 Keyboard 0 Movement Mouse Keybinds 0 Fullscreen 1 Font 18/X11 Map View 76x50 Tactical HUD 1 Map Filters NONE Filters NONE Steam 1 RUN: 876a1c87-2823-41ed-9395-1499c1f6e296